bitfinex/quotes_ETHUSD_20250814
["timestamp","ask_amount","ask_price","bid_price","bid_amount"]
[1755204427376,64.17111943,4520.1,4520.0,4.80926122]
[1755204427680,57.73141943,4520.1,4520.0,4.80926122]
[1755204427822,60.15967494,4520.1,4520.0,4.80926122]
[1755204428023,64.17111943,4520.1,4520.0,4.80926122]
[1755204428263,61.33241943,4520.1,4520.0,4.80926122]
[1755204428436,60.08517774,4520.1,4520.0,4.80926122]
[1755204428641,59.30476606,4520.1,4520.0,6.03926122]
[1755204428833,59.85476606,4520.1,4520.0,6.03926122]
[1755204429034,60.61327494,4520.1,4520.0,6.03926122]
[1755204429263,62.99837494,4520.1,4520.0,6.03926122]
[1755204429560,63.77844199,4520.1,4520.0,6.03926122]
[1755204429760,60.93974199,4520.1,4520.0,6.03926122]
[1755204430058,60.93974199,4520.1,4520.0,7.26926122]
[1755204430224,60.27468599,4520.1,4520.0,7.26926122]
[1755204430423,60.2714521,4520.1,4520.0,7.26926122]
[1755204430865,62.33008505,4520.1,4520.0,7.26926122]
[1755204431251,62.60719858,4520.1,4520.0,7.26926122]
[1755204431431,62.60719858,4520.1,4520.0,8.49926122]
[1755204431630,63.27225458,4520.1,4520.0,8.49926122]
[1755204431826,64.59825458,4520.1,4520.0,8.49926122]
[1755204432021,60.99725458,4520.1,4520.0,7.30330138]
[1755204432263,64.59225458,4520.1,4520.0,5.50929616]
[1755204432562,64.79853035,4520.1,4520.0,5.51029616]
[1755204432865,66.3628752,4520.1,4520.0,6.74029616]
[1755204433354,64.79853035,4520.1,4520.0,6.74029616]
[1755204433727,65.20353035,4520.1,4520.0,6.74029616]
[1755204433943,68.59325458,4520.1,4520.0,6.74029616]
[1755204434166,68.59325458,4520.1,4520.0,7.97029616]
[1755204434479,68.79953035,4520.1,4520.0,7.97029616]
[1755204435581,61.81483035,4520.1,4520.0,9.20029616]
[1755204435883,68.59425458,4520.1,4520.0,9.20029616]
[1755204436176,64.59425458,4520.1,4520.0,9.20029616]
[1755204436880,64.59425458,4520.1,4520.0,10.43029616]
[1755204437563,60.72014105,4520.1,4520.0,10.43029616]
[1755204437895,64.59573712,4520.1,4520.0,10.43029616]
[1755204438058,64.3174827,4520.1,4520.0,11.66029616]
[1755204438265,64.59459623,4520.1,4520.0,11.66029616]
[1755204439084,60.99666869,4520.1,4520.0,11.66029616]
[1755204439244,64.59166869,4520.1,4520.0,11.66029616]
[1755204439448,64.59166869,4520.1,4520.0,12.89029616]
[1755204439679,64.26260198,4520.1,4520.0,12.89029616]
[1755204439848,64.58820606,4520.1,4520.0,12.89029616]
[1755204440052,64.58720606,4520.1,4520.0,12.89029616]
[1755204440362,66.15155091,4520.1,4520.0,12.89029616]
[1755204440559,64.58520606,4520.1,4520.0,12.89029616]
[1755204440777,64.58520606,4520.1,4520.0,14.12029616]
[1755204440961,64.58420606,4520.1,4520.0,14.12029616]
[1755204441371,66.14867984,4520.1,4520.0,14.12029616]
[1755204441676,64.58420606,4520.1,4520.0,11.7282342]
[1755204442054,64.58420606,4520.1,4520.0,12.9582342]
[1755204442259,66.14992161,4520.1,4520.0,11.1641862]
[1755204442479,64.58420606,4520.1,4520.0,11.1641862]
[1755204443458,64.58420606,4520.1,4520.0,12.3941862]
[1755204444481,66.54070266,4520.1,4520.0,12.3941862]
[1755204444657,63.70200266,4520.1,4520.0,13.6241862]
[1755204444859,59.56400266,4520.1,4520.0,13.6241862]
[1755204445059,62.86688913,4520.1,4520.0,13.6241862]
[1755204445388,60.91039253,4520.1,4520.0,13.6241862]
[1755204445790,62.20860606,4520.1,4520.0,13.6241862]
[1755204445992,62.20860606,4520.1,4520.0,10.63405559]
[1755204446300,66.60996989,4520.1,4520.0,11.86405559]
[1755204446497,59.53874748,4520.1,4520.0,11.86405559]
[1755204446651,51.7205251,4520.1,4520.0,14.70185559]
[1755204446969,48.7443251,4520.1,4520.0,14.70185559]
[1755204447164,52.3293251,4520.1,4520.0,11.86405559]
[1755204447366,35.3055251,4520.1,4520.0,11.86405559]
[1755204447586,35.3055251,4520.1,4520.0,13.09405559]
[1755204447587,39.09207953,4520.1,4520.0,13.09405559]
[1755204447781,31.72137367,4520.1,4520.0,13.09405559]
[1755204448000,1.59842357,4520.1,4520.0,13.09405559]
[1755204448215,4.71507216,4520.1,4520.0,13.09405559]
[1755204448959,1.13007216,4520.1,4520.0,14.32405559]
[1755204449262,4.71407216,4520.1,4520.0,15.6750339]
[1755204450093,4.71407216,4520.1,4520.0,14.32405559]
[1755204450252,4.71407216,4520.1,4520.0,15.55405559]
[1755204450253,1.13007216,4520.1,4520.0,15.55405559]
[1755204450566,4.71607216,4520.1,4520.0,15.55405559]
[1755204451380,7.71607216,4520.1,4520.0,15.55405559]
[1755204451709,4.60188726,4520.1,4520.0,15.55405559]
[1755204451921,7.71807216,4520.1,4520.0,16.78405559]
[1755204452068,8.18988726,4520.1,4520.0,16.78405559]
[1755204452883,38.78007326,4520.1,4520.0,16.78405559]
[1755204453391,38.78007326,4520.1,4520.0,18.01405559]
[1755204454100,35.19207326,4520.1,4520.0,18.01405559]
[1755204454285,38.18488726,4520.1,4520.0,18.01405559]
[1755204454780,1.13007216,4520.1,4520.0,24.62756115]
[1755204454980,0.002,4520.6,4520.0,24.62756115]
[1755204455507,0.002,4520.6,4520.0,21.04556115]
[1755204455707,0.002,4520.6,4520.1,3.584]
[1755204456206,0.002,4520.6,4520.5,1.23]
[1755204456411,0.002,4520.6,4520.5,4.813]
[1755204456775,0.002,4520.6,4520.5,1.23]
[1755204457081,0.1124,4520.6,4520.5,1.23]
[1755204457523,0.1124,4520.6,4520.5,2.46]
[1755204457812,0.1124,4520.6,4520.5,3.2846464]
[1755204458922,0.1124,4520.6,4520.5,4.5146464]
[1755204460227,0.1124,4520.6,4520.5,5.7446464]
[1755204460391,0.0653,4521.5,4520.6,0.55]
[1755204460590,0.0653,4521.5,4520.8,0.55]
[1755204460810,0.0653,4521.5,4521.0,0.6604]
[1755204461018,0.0653,4521.5,4521.0,4.2394]
[1755204461592,0.0653,4521.5,4521.0,5.4694]
[1755204462928,0.0653,4521.5,4521.0,6.6994]
[1755204463130,0.0653,4521.5,4521.0,7.47360646]
[1755204464036,0.0653,4521.5,4521.0,10.47360646]
[1755204464201,0.0653,4521.5,4521.0,26.37397991]
[1755204465225,0.0653,4521.5,4521.0,13.80510648]
[1755204465426,0.0653,4521.5,4521.0,26.37397991]
[1755204465600,0.0653,4521.5,4521.0,27.60397991]
[1755204465823,0.0653,4521.5,4521.0,27.60477991]
[1755204467050,0.0653,4521.5,4521.0,28.83477991]
[1755204467556,0.0653,4521.5,4521.0,28.93477991]
[1755204467760,0.0653,4521.5,4521.4,5.76170433]
[1755204468061,0.0653,4521.5,4521.4,10.20487476]
[1755204468369,0.0653,4521.5,4521.4,11.43567476]
[1755204468564,0.002,4521.9,4521.8,0.65]
[1755204468766,0.002,4522.4,4522.3,5.76126417]
[1755204469087,0.002,4522.4,4522.3,9.32726417]
[1755204469225,0.002,4522.4,4522.3,11.53172821]
[1755204469427,20.0,4526.4,4522.7,0.65]
[1755204469661,0.4711,4525.5,4523.0,0.55]
[1755204469825,0.4711,4525.5,4524.2,0.55]
[1755204470030,0.4711,4526.2,4524.9,0.55]
[1755204470361,2.4381,4525.9,4525.0,5.22276975]
[1755204470542,0.4711,4525.8,4525.1,3.573]
[1755204470951,0.4711,4526.2,4525.1,3.573]
[1755204471480,0.002,4527.3,4526.1,1.23]
[1755204471656,0.002,4527.3,4526.2,3.59309358]
[1755204471995,0.002,4527.3,4526.4,0.55]
[1755204472142,0.002,4527.3,4526.5,3.573]
[1755204472341,2.9166,4527.2,4526.5,3.573]
[1755204472764,2.9166,4527.2,4526.7,1.23]
[1755204472975,2.9166,4527.2,4526.7,4.804]
[1755204473176,0.002,4527.3,4526.7,4.804]
[1755204473376,0.002,4528.7,4527.5,2.20872446]
[1755204473696,0.002,4528.7,4526.9,2.2090172]
[1755204473697,0.0012,4528.7,4528.5,3.55]
[1755204473982,2.4829,4531.8,4528.9,3.55]
[1755204473983,0.4377,4531.8,4528.9,3.55]
[1755204474196,0.4377,4531.8,4529.0,19.68143935]
[1755204474495,0.1104,4530.6,4529.0,21.97775236]
[1755204475043,0.1104,4530.6,4529.0,7.2434]
[1755204475279,0.1104,4530.2,4529.0,7.96774]
[1755204475780,2.4809,4530.5,4529.0,9.19774]
[1755204475953,0.1104,4530.5,4529.0,11.29533293]
[1755204476276,0.4357,4530.9,4529.0,9.19774]
[1755204476578,0.1104,4530.4,4529.0,9.19774]
[1755204477178,0.1104,4530.4,4529.0,12.63573293]
[1755204477688,0.002,4530.5,4529.0,10.42774]
[1755204477845,0.1104,4529.8,4529.0,10.42774]
[1755204478247,0.1104,4529.8,4529.0,3.84474]
[1755204478447,2.9166,4529.9,4529.0,7.9454]
[1755204478658,0.1104,4529.5,4529.0,7.835]
[1755204479746,0.1104,4529.5,4529.0,9.065]
[1755204479946,2.9166,4529.9,4529.0,9.065]
[1755204480156,0.1104,4529.7,4529.0,9.065]
[1755204480758,0.4377,4529.1,4529.0,8.515]
[1755204480960,0.5481,4529.1,4529.0,8.515]
[1755204481291,3.029,4529.1,4529.0,9.745]
[1755204481651,3.029,4529.1,4529.0,3.175]
[1755204482490,3.029,4529.1,4529.0,4.405]
[1755204482962,3.029,4529.1,4529.0,7.992]
[1755204483164,0.1124,4529.1,4529.0,7.992]
[1755204483493,0.1124,4529.1,4529.0,8.7912]
[1755204483674,0.002,4529.1,4529.0,9.3412]
[1755204483873,0.002,4529.1,4529.0,13.4929]
[1755204484203,0.002,4529.1,4529.0,10.5712]
[1755204484904,0.002,4529.1,4529.0,9.772]
[1755204485051,0.002,4529.1,4529.0,11.002]
[1755204485858,2.9186,4529.1,4529.0,10.452]
[1755204486188,3.029,4529.1,4529.0,10.452]
[1755204486488,3.029,4529.1,4529.0,11.682]
[1755204487203,3.029,4529.1,4529.0,8.095]
[1755204487797,3.029,4529.1,4529.0,9.17296548]
[1755204489192,3.029,4529.1,4529.0,10.40296548]
[1755204489918,0.002,4529.1,4529.0,15.57826203]
[1755204490896,0.002,4529.1,4529.0,16.80826203]
[1755204491112,0.002,4529.1,4529.0,15.21796548]
[1755204492200,0.002,4529.1,4529.0,15.76796548]
[1755204492405,0.002,4529.1,4529.0,16.99796548]
[1755204492758,0.002,4529.1,4529.0,17.01396548]
[1755204493795,0.002,4529.1,4529.0,18.24396548]
[1755204493973,0.002,4529.1,4529.0,17.69396548]
[1755204494869,0.002,4529.1,4529.0,17.69096548]
[1755204495093,2.9186,4529.1,4529.0,18.92096548]
[1755204496723,2.9186,4529.1,4529.0,20.15096548]
[1755204498225,2.9186,4529.1,4529.0,21.38096548]
[1755204498824,0.002,4529.1,4529.0,21.38096548]
[1755204499588,0.002,4529.1,4529.0,22.61096548]
[1755204499788,0.002,4529.1,4529.0,22.61196548]
[1755204500026,0.1124,4529.1,4529.0,22.61196548]
[1755204500630,0.5481,4529.1,4529.0,22.61196548]
[1755204500932,3.029,4529.1,4529.0,20.24396548]
[1755204501093,3.73925977,4529.1,4529.0,19.73095685]
[1755204501292,3.4648708,4529.1,4529.0,19.73095685]
[1755204501618,2.60584124,4529.1,4529.0,19.73095685]
[1755204501789,0.59214363,4529.1,4529.0,19.73095685]
[1755204501985,3.37104363,4529.1,4529.0,19.73095685]
[1755204502218,2.7309,4529.1,4529.0,19.73095685]
[1755204502457,2.7309,4529.1,4529.0,20.96095685]
[1755204503053,32.85386439,4529.1,4529.0,20.96095685]
[1755204503223,33.32036825,4529.1,4529.0,20.96095685]
[1755204503857,33.32036825,4529.1,4529.0,22.19095685]
[1755204504161,33.32036825,4529.1,4529.0,20.99784102]
[1755204504463,35.51329781,4529.1,4529.0,19.20814598]
[1755204504677,35.51329781,4529.1,4529.0,16.82156853]
[1755204505137,35.51329781,4529.1,4529.0,18.05156853]
[1755204505561,39.09829781,4529.1,4529.0,18.05156853]
[1755204505767,39.09829781,4529.1,4529.0,17.221]
[1755204505934,39.09829781,4529.1,4526.3,0.48230936]
[1755204505935,0.55,4527.7,4526.7,1.1703]
[1755204506133,1.18029464,4527.0,4526.7,1.1703]
[1755204506333,3.36832007,4526.9,4526.7,1.1703]
[1755204506558,3.71096439,4527.1,4526.7,1.1703]
[1755204506559,0.46650386,4527.0,4526.7,1.1703]
[1755204506771,1.18029464,4526.9,4526.7,1.1703]
[1755204506921,0.20468943,4526.8,4526.7,1.1703]
[1755204507117,0.37348647,4526.8,4526.7,1.1703]
[1755204508026,0.37348647,4526.8,4526.7,2.13507653]
[1755204509071,32.70188647,4526.8,4526.7,2.13507653]
[1755204509224,0.96283726,4526.8,4526.7,2.13507653]
[1755204509426,0.37348647,4526.8,4526.7,2.13507653]
[1755204509658,0.37348647,4526.8,4526.7,3.36507653]
[1755204510328,0.96210653,4526.8,4526.7,3.36507653]
[1755204510529,0.37348647,4526.8,4526.7,3.36507653]
[1755204510754,2.70188647,4526.8,4526.7,3.36507653]
[1755204510964,2.82450827,4526.8,4526.7,4.59507653]
[1755204511151,0.49610827,4526.8,4526.7,4.59507653]
[1755204511468,0.37348647,4526.8,4526.7,4.59507653]
[1755204511671,0.48388647,4526.8,4526.7,4.59507653]
[1755204512069,1.07204382,4526.8,4526.7,4.59507653]
[1755204512243,1.07204382,4526.8,4526.7,5.82507653]
[1755204512572,0.48388647,4526.8,4526.7,9.87827653]
[1755204512773,0.48388647,4526.8,4526.7,10.39990418]
[1755204512974,0.48388647,4526.8,4526.7,5.82507653]
[1755204513141,2.81228647,4526.8,4526.7,5.82507653]
[1755204513672,2.93472616,4526.8,4526.7,7.05507653]
[1755204513968,3.38522616,4526.8,4526.7,7.05507653]
[1755204514641,33.38522616,4526.8,4526.7,7.05507653]
[1755204514841,33.85529696,4526.8,4526.7,7.05507653]
[1755204515049,33.85529696,4526.8,4526.7,8.28507653]
[1755204515975,33.40479696,4526.8,4526.7,8.28507653]
[1755204516276,38.22374923,4526.8,4526.7,8.28507653]
[1755204516575,38.22374923,4526.8,4526.7,9.51507653]
[1755204517536,1.66375739,4526.8,4526.7,9.51507653]
[1755204517748,1.19368659,4526.8,4526.7,9.51507653]
[1755204517950,3.97258659,4526.8,4526.7,10.74507653]
[1755204518177,3.85529696,4526.8,4526.7,10.74507653]
[1755204518473,35.73529696,4526.8,4526.7,10.74507653]
[1755204518678,1.88,4526.7,4526.6,0.001]
[1755204518968,36.0094993,4526.7,4526.6,0.001]
[1755204519175,36.0094993,4526.7,4526.1,1.23]
[1755204519346,36.0094993,4526.7,4526.2,0.001]
[1755204519347,1.88,4526.5,4526.2,0.001]
[1755204519672,1.88,4526.3,4526.2,0.001]
[1755204519977,33.09944183,4526.3,4526.2,0.001]
[1755204520274,35.87834183,4526.3,4526.2,0.001]
[1755204520677,35.87834183,4526.3,4526.2,1.231]
[1755204521372,37.05074167,4526.3,4526.2,1.231]
[1755204521938,39.13941227,4526.3,4526.2,1.231]
[1755204522261,39.45234183,4526.3,4526.2,2.461]
[1755204523254,38.12034183,4526.3,4526.2,2.461]
[1755204523554,8.12034183,4526.3,4526.2,3.691]
[1755204523857,38.12034183,4526.3,4526.2,3.691]
[1755204524841,33.78491227,4526.3,4526.2,3.691]
[1755204525073,35.2582777,4526.3,4526.2,4.921]
[1755204525251,34.47551227,4526.3,4526.2,4.921]
[1755204525894,37.25441227,4526.3,4526.2,4.921]
[1755204526040,37.56734183,4526.3,4526.2,4.921]
[1755204526240,37.56734183,4526.3,4526.2,6.151]
[1755204527564,34.78844183,4526.3,4526.2,7.381]
[1755204527979,37.11684183,4526.3,4526.2,7.381]
[1755204528488,37.97278556,4526.3,4526.2,7.381]
[1755204528963,38.28571512,4526.3,4526.2,8.611]
[1755204529161,39.28621512,4526.3,4526.2,8.611]
[1755204529471,38.11381528,4526.3,4526.2,8.611]
[1755204530052,58.11381528,4526.3,4526.2,8.611]
[1755204530248,59.44381528,4526.3,4526.2,8.611]
[1755204530492,59.43881528,4526.3,4526.2,7.78449564]
[1755204530858,61.00808202,4526.3,4526.2,7.78449564]
[1755204531376,41.00808202,4526.3,4526.2,7.78449564]
[1755204531889,41.00808202,4526.3,4526.2,9.01449564]
[1755204532292,61.00808202,4526.3,4526.2,9.01449564]
[1755204532500,59.43881528,4526.3,4526.2,6.62618789]
[1755204532790,59.6792851,4526.3,4526.2,6.62618789]
[1755204532952,56.1192851,4526.3,4526.2,6.62618789]
[1755204533292,59.67857808,4526.3,4526.2,7.85618789]
[1755204534157,59.67857808,4526.3,4526.2,6.66200496]
[1755204534557,59.67930357,4526.3,4526.2,7.89200496]
[1755204535989,59.67930357,4526.3,4526.2,9.12200496]
[1755204536558,56.12030357,4526.3,4526.2,9.12200496]
[1755204536753,59.67930357,4526.3,4526.2,9.12200496]
[1755204537466,59.67930357,4526.3,4526.2,10.35200496]
[1755204538587,59.67930357,4526.3,4526.2,7.96363704]
[1755204538893,59.67930357,4526.3,4526.2,9.19363704]
[1755204539460,59.67930357,4526.3,4526.2,10.42363704]
[1755204540213,53.34140357,4526.3,4526.2,11.65363704]
[1755204540396,50.90848826,4526.3,4526.2,10.30563291]
[1755204540583,21.49896329,4526.3,4526.2,13.7871962]
[1755204540782,20.90848826,4526.3,4526.2,13.7871962]
[1755204541210,0.90848826,4526.3,4526.2,12.63353291]
[1755204541375,0.31540312,4526.3,4526.2,10.30563291]
[1755204541575,0.1104,4526.3,4526.2,13.86353291]
[1755204542075,0.70087503,4526.3,4526.2,13.86353291]
[1755204542272,0.90616416,4526.3,4526.2,13.86353291]
[1755204542471,0.31568913,4526.3,4526.2,13.86353291]
[1755204542676,0.43870347,4526.3,4526.2,11.09253291]
[1755204542925,0.43870347,4526.3,4526.2,12.32253291]
[1755204543277,30.43870347,4526.3,4526.2,12.76563291]
[1755204543508,30.43870347,4526.3,4526.2,12.32253291]
[1755204543509,30.90877427,4526.3,4526.2,12.32253291]
[1755204543815,32.0895622,4526.3,4526.2,12.32253291]
[1755204544014,31.22170383,4526.3,4526.2,12.32253291]
[1755204544204,32.79592698,4526.3,4526.2,12.32253291]
[1755204544513,31.22170383,4526.3,4526.2,13.55253291]
[1755204544723,34.46777427,4526.3,4526.2,13.55253291]
[1755204544878,34.46777427,4526.3,4526.2,11.16450631]
[1755204545875,30.90877427,4526.3,4526.2,12.83760631]
[1755204546076,34.46777427,4526.3,4526.2,12.83760631]
[1755204546612,30.79837427,4526.3,4526.2,12.83760631]
[1755204546813,0.79837427,4526.3,4526.2,15.16550631]
[1755204547015,0.20528913,4526.3,4526.2,15.16550631]
[1755204547176,0.20528913,4526.3,4526.2,16.39550631]
[1755204547710,3.76428913,4526.3,4526.2,14.06760631]
[1755204547910,3.88730347,4526.3,4526.2,13.62450631]
[1755204548291,34.35737427,4526.3,4526.2,13.62450631]
[1755204548486,50.38080058,4526.3,4526.2,13.62450631]
[1755204548712,53.94803014,4526.3,4526.2,14.85450631]
[1755204549010,55.51813163,4526.3,4526.2,0.78707494]
[1755204549216,1.10303105,4526.2,4526.1,0.82394235]
[1755204549414,32.32930532,4526.2,4526.1,0.82394235]
[1755204549708,34.17780532,4526.2,4526.1,0.82394235]
[1755204549874,34.60570532,4526.2,4526.1,0.82394235]
[1755204550076,5.93570532,4526.2,4526.1,2.05394235]
[1755204550377,55.93570532,4526.2,4526.1,0.26273696]
[1755204550575,55.93570532,4526.2,4525.7,0.001]
[1755204550892,2.12836253,4525.8,4525.7,0.001]
[1755204551086,36.44493048,4525.8,4525.7,0.001]
[1755204551292,35.45965309,4525.8,4525.7,0.001]
[1755204551493,37.73605309,4525.8,4525.7,1.231]
[1755204551893,39.31441562,4525.8,4525.7,1.231]
[1755204552080,39.74231562,4525.8,4525.7,1.231]
[1755204552282,0.55,4525.7,4525.3,0.001]
[1755204552615,0.55,4525.5,4525.3,0.001]
[1755204552776,34.07746646,4525.4,4525.3,0.001]
[1755204552977,35.6484516,4525.4,4525.3,0.001]
[1755204553278,38.16495309,4525.4,4525.3,0.001]
[1755204553986,38.16514636,4525.4,4525.3,1.231]
[1755204554178,35.46084636,4525.4,4525.3,1.231]
[1755204554381,37.73724636,4525.4,4525.3,1.231]
[1755204554793,39.31429833,4525.4,4525.3,1.231]
[1755204555029,33.47889833,4525.4,4525.3,1.231]
[1755204555218,37.03789833,4525.4,4525.3,1.231]
[1755204555516,37.03789833,4525.4,4525.3,2.461]
[1755204556709,37.14829833,4525.4,4525.3,2.461]
[1755204556908,36.94282814,4525.4,4525.3,3.691]
[1755204557235,37.14828534,4525.4,4525.3,3.691]
[1755204558247,39.42468534,4525.4,4525.3,4.921]
[1755204558427,38.27553337,4525.4,4525.3,4.921]
[1755204558964,37.84763337,4525.4,4525.3,4.921]
[1755204559134,27.8508433,4525.4,4525.3,4.921]
[1755204559339,57.8508433,4525.4,4525.3,4.921]
[1755204559553,52.0154433,4525.4,4525.3,6.151]
[1755204559725,50.91241225,4525.4,4525.3,6.5941]
[1755204559922,54.47041225,4525.4,4525.3,8.922]
[1755204560164,34.47041225,4525.4,4525.3,6.151]
[1755204560526,34.78334181,4525.4,4525.3,6.151]
[1755204561067,34.47041225,4525.4,4525.3,7.381]
[1755204561767,34.47041225,4525.4,4525.3,7.8525]
[1755204561966,30.91241225,4525.4,4525.3,7.8525]
[1755204562169,1.70114588,4525.4,4525.3,10.2599]
[1755204562464,3.6684,4525.4,4525.3,11.4899]
[1755204562669,3.99713152,4525.4,4525.3,11.4899]
[1755204562832,3.87382111,4525.4,4525.3,11.4899]
[1755204563026,0.43907377,4525.4,4525.3,11.4899]
[1755204563231,3.6684,4525.4,4525.3,11.4899]
[1755204563430,3.99707377,4525.4,4525.3,11.4899]
[1755204563869,3.99707377,4525.4,4525.3,12.7199]
[1755204565274,3.99707377,4525.4,4525.3,13.9499]
[1755204565626,0.43907377,4525.4,4525.3,13.9499]
[1755204565829,0.43907377,4525.4,4525.3,11.5425]
[1755204565830,0.70186412,4525.4,4525.3,11.5425]
[1755204566471,33.6684,4525.4,4525.3,12.301]
[1755204566775,34.78328406,4525.4,4525.3,12.301]
[1755204566977,35.96629529,4525.4,4525.3,12.301]
[1755204567172,35.96629529,4525.4,4525.3,12.7725]
[1755204567173,30.9123545,4525.4,4525.3,12.7725]
[1755204567334,32.09562169,4525.4,4525.3,12.7725]
[1755204567543,30.9123545,4525.4,4525.3,12.7725]
[1755204568082,30.9123545,4525.4,4525.3,14.0025]
[1755204568936,1.70133906,4525.4,4525.3,14.0025]
[1755204569279,0.89938456,4525.4,4525.3,16.4099]
[1755204569577,0.89938456,4525.4,4525.3,17.6399]
[1755204569936,4.45638456,4525.4,4525.3,15.2325]
[1755204570276,3.99607377,4525.4,4525.3,14.761]
[1755204570440,6.76217377,4525.4,4525.3,14.761]
[1755204570641,7.54838406,4525.4,4525.3,13.56680092]
[1755204570841,37.54838406,4525.4,4525.3,14.79680092]
[1755204571486,37.78848555,4525.4,4525.3,14.79680092]
[1755204571811,34.78235663,4525.4,4525.3,14.79680092]
[1755204572338,34.35902707,4525.4,4525.3,16.02680092]
[1755204572475,34.46942707,4525.4,4525.3,16.49830092]
[1755204572675,30.91242707,4525.4,4525.3,16.49830092]
[1755204572910,2.09709097,4525.4,4525.3,16.49830092]
[1755204573108,0.1104,4525.4,4525.3,18.90570092]
[1755204573422,0.7899223,4525.6,4525.3,22.0811729]
[1755204573605,0.1104,4525.4,4525.3,19.6737729]
[1755204573773,0.70294133,4525.4,4525.3,22.7592729]
[1755204573972,0.1104,4525.4,4525.3,22.7592729]
[1755204574175,0.1104,4525.4,4525.3,23.2307729]
[1755204574411,0.1104,4525.4,4525.3,25.6381729]
[1755204574976,0.1104,4525.4,4525.3,26.8681729]
[1755204575976,1.1846639,4526.2,4525.3,26.8681729]
[1755204575977,1.17333745,4526.3,4525.3,40.01978214]
[1755204576337,0.002,4530.1,4529.4,2.20779794]
[1755204576538,0.78130158,4534.4,4529.6,3.1]
[1755204576679,30.0,4534.3,4531.1,3.0]
[1755204576875,30.0,4534.3,4531.2,0.4407]
[1755204577200,0.1104,4532.8,4531.8,0.59112366]
[1755204577432,2.45028622,4534.2,4531.9,0.4407]
[1755204577433,0.1104,4532.3,4531.9,0.4407]
[1755204577589,0.1104,4532.2,4532.0,0.12279205]
[1755204577794,1.17558899,4532.2,4532.0,0.4407]
[1755204578013,1.17558899,4532.2,4532.1,0.42287]
[1755204578379,0.1104,4532.2,4532.1,0.42287]
[1755204578976,0.1104,4532.2,4532.1,4.64657]
[1755204579325,0.1104,4532.2,4532.1,4.97285022]
[1755204579618,0.1104,4532.2,4532.1,6.08049514]
[1755204580188,0.1104,4532.2,4532.1,5.87657]
[1755204580577,0.1104,4532.2,4532.1,1.65287]
[1755204580815,1.10319069,4532.4,4532.1,1.23]
[1755204580975,1.1031993,4532.3,4532.1,2.46]
[1755204581387,0.4407,4532.2,4532.1,2.46]
[1755204582221,1.1031993,4532.3,4532.1,2.46]
[1755204582525,1.1031993,4532.3,4532.1,3.69]
[1755204582904,0.4407,4532.2,4532.1,3.69]
[1755204583700,1.1031993,4532.3,4532.1,4.92]
[1755204584228,4.00146489,4532.9,4532.1,4.92]
[1755204584388,1.10319326,4532.3,4532.1,4.92]
[1755204584586,3.766,4532.9,4532.1,4.92]
[1755204584840,1.10309528,4532.7,4532.1,4.92]
[1755204584983,1.10321698,4532.2,4532.1,4.92]
[1755204585628,1.54391698,4532.2,4532.1,4.92]
[1755204585784,5.30891698,4532.2,4532.1,4.92]
[1755204586736,5.30891698,4532.2,4532.1,6.15]
[1755204586905,35.30891698,4532.2,4532.1,6.15]
[1755204587491,31.54391698,4532.2,4532.1,6.15]
[1755204587691,35.30691698,4532.2,4532.1,6.15]
[1755204588127,35.30691698,4532.2,4532.1,7.38]
[1755204588429,35.96943396,4532.2,4532.1,7.38]
[1755204589657,35.96943396,4532.2,4532.1,8.61]
[1755204590808,36.52053396,4532.2,4532.1,8.61]
[1755204591009,41.84593396,4532.2,4532.1,9.84]
[1755204591632,2.31683396,4532.2,4532.1,9.84]
[1755204591830,6.06083396,4532.2,4532.1,9.84]
[1755204592232,6.06083396,4532.2,4532.1,11.07]
[1755204592849,2.31683396,4532.2,4532.1,11.07]
[1755204593656,2.31683396,4532.2,4532.1,12.3]
[1755204595049,2.31683396,4532.2,4532.1,13.53]
[1755204596328,2.31683396,4532.2,4532.1,14.76]
[1755204597620,2.31683396,4532.2,4532.1,15.99]
[1755204599161,2.31683396,4532.2,4532.1,17.22]
[1755204600533,41.94869885,4532.2,4532.1,15.45279335]
[1755204600740,41.94869885,4532.2,4532.1,14.85335202]
[1755204602969,2.20643396,4532.2,4532.1,0.12280052]
[1755204603139,2.20643396,4532.2,4532.1,1.35280052]
[1755204603338,2.20643396,4532.2,4532.1,5.06180052]
[1755204603643,2.20643396,4532.2,4532.1,1.35280052]
[1755204603847,32.63393396,4532.2,4532.1,1e-08]
[1755204605029,32.63393396,4532.2,4532.1,0.00100001]
[1755204605724,32.20643396,4532.2,4532.1,0.00100001]
[1755204605930,5.91543396,4532.2,4532.1,1.23100001]
[1755204606238,2.20643396,4532.2,4532.1,1.23100001]
[1755204606443,2.41206324,4532.2,4532.1,1.23100001]
[1755204607250,2.41206324,4532.2,4532.1,2.46100001]
[1755204607941,2.5354735,4532.2,4532.1,2.46100001]
[1755204608361,2.5354735,4532.2,4532.1,2.1960696]
[1755204608531,2.5354735,4532.2,4532.1,3.4260696]
[1755204610041,0.32903954,4532.2,4532.1,5.0971696]
[1755204610367,0.20562928,4532.2,4532.1,5.0971696]
[1755204610529,0.31602928,4532.2,4532.1,5.0971696]
[1755204611135,0.31602928,4532.2,4532.1,5.60067731]
[1755204611326,0.31602928,4532.2,4532.1,6.83067731]
[1755204611755,2.30181984,4532.2,4532.1,6.3271696]
[1755204611942,0.31602928,4532.2,4532.1,6.3271696]
[1755204612848,0.31602928,4532.2,4532.1,7.5571696]
[1755204614375,0.31602928,4532.2,4532.1,8.7871696]
[1755204614555,0.20562928,4532.2,4532.1,8.7871696]
[1755204614758,0.20586222,4532.2,4532.1,10.03538656]
[1755204615775,0.20586222,4532.2,4532.1,11.26538656]
[1755204616670,0.20586222,4532.2,4532.1,9.5760696]
[1755204616871,0.63336222,4532.2,4532.1,10.8060696]
[1755204617295,3.12117955,4532.2,4532.1,10.8060696]
[1755204617671,5.10697011,4532.2,4532.1,10.8060696]
[1755204617872,5.26814887,4532.2,4532.1,1e-08]
[1755204618405,5.26814887,4532.2,4532.1,1.22920001]
[1755204620502,5.26814887,4532.2,4532.1,2.45920001]
[1755204621105,38.50361376,4532.2,4532.1,2.02860818]
[1755204621263,38.97805657,4532.2,4532.1,2.02860818]
[1755204621612,38.97805657,4532.2,4532.1,0.83614455]